fUSD/lending_fUSD_20250814
["ID","MTS","AMOUNT","RATE_DAILY","PERIOD"]
[379142221,1755161445325,-151.20010376,0.00039847,2]
[379142222,1755161445338,-500.0,0.00039847,2]
[379142223,1755161445349,-2500.0,0.0003985,14]
[379142224,1755161445361,-5799.94343414,0.00039853,4]
[379142226,1755161445374,-4000.0,0.00039856,4]
[379142227,1755161445386,-2500.0,0.00039859,14]
[379142228,1755161445398,-5113.41,0.00039863,120]
[379142229,1755161445411,-2500.0,0.00039868,14]
[379142230,1755161445427,-5799.94343414,0.00039875,4]
[379142231,1755161445439,-2500.0,0.00039877,14]
[379142232,1755161445461,-4136.10497163,0.00039878,15]
[379142233,1755161445473,-195.93188428,0.00039882,2]
[379142234,1755161445485,-156.44,0.00039885,2]
[379142235,1755161445497,-618.81145652,0.00039885,2]
[379142236,1755161445509,-2500.0,0.00039886,14]
[379142237,1755161445521,-5799.94343414,0.00039893,4]
[379142238,1755161445533,-2500.0,0.00039894,14]
[379142239,1755161445545,-2000.0,0.000399,120]
[379142240,1755161445557,-2000.0,0.000399,120]
[379142241,1755161445571,-2000.0,0.000399,120]
[379142242,1755161445582,-836.73048568,0.000399,120]
[379142243,1755161445595,-150.0,0.000399,2]
[379142244,1755161445606,-2028.16386435,0.00039903,14]
[379142245,1755161445740,-396.4423998,0.00034209,2]
[379142246,1755161445755,-609.9173999,0.00034209,2]
[379142247,1755161445770,-219.02711275,0.00034209,2]
[379142248,1755161445783,-150.0,0.00039864,2]
[379142249,1755161445795,-307.85457677,0.00039903,14]
[379142250,1755161445938,-163.98155888,0.00039903,14]
[379142251,1755161445950,-38.05365039,0.00039909,2]
[379142252,1755161446020,-760.0,0.00039658,4]
[379142253,1755161446032,-1089.24854754,0.00039909,2]
[379142254,1755161446047,-40599.604039,0.00039909,4]
[379142255,1755161446059,-151.0,0.0003991,30]
[379142256,1755161446072,-151.0,0.0003991,30]
[379142257,1755161446085,-151.0,0.0003991,30]
[379142258,1755161446098,-151.0,0.0003991,30]
[379142259,1755161446111,-2500.0,0.00039912,14]
[379142260,1755161446123,-5113.60827799,0.00039917,120]
[379142261,1755161446136,-150.0,0.00039917,7]
[379142262,1755161446148,-191.611331,0.00039919,30]
[379142263,1755161446160,-1605.53033481,0.00039919,2]
[379142267,1755161449468,-150.0,0.00039749,2]
[379142268,1755161449478,-150.0,0.00039892,2]
[379142269,1755161449487,-799.94685092,0.00039919,2]
[379142270,1755161449511,-2594.52281427,0.00039919,2]
[379142271,1755161449521,-8501.29607789,0.00039919,2]
[379142272,1755161449596,-3218.21260439,0.00039919,2]
[379142273,1755161449609,-3537.90951772,0.00039919,2]
[379142274,1755161449618,-418.86358982,0.00039919,2]
[379142275,1755161449682,-4792.95028472,0.00039919,2]
[379142276,1755161449696,-2608.08490494,0.00039919,2]
[379142277,1755161449731,1811.0,0.0003013,120]
[379142278,1755161449751,-1279.50000005,0.00039919,2]
[379142279,1755161451096,-150.0,0.00018999,2]
[379142280,1755161451105,-300.0,0.00020369,2]
[379142281,1755161451115,-338.66005029,0.00021739,2]
[379142282,1755161451124,-1791.0,0.00028744,2]
[379142283,1755161451135,-771.0,0.00028886,2]
[379142284,1755161451144,-1225.38691245,0.00035342,2]
[379142285,1755161451153,-800.0,0.000389,14]
[379142286,1755161451162,-16937.04937009,0.00039919,2]
[379142287,1755161451184,-656.28824019,0.00039919,2]
[379142288,1755161451202,-1348.04208834,0.00039919,2]
[379142289,1755161451331,-450.85402016,0.00039919,2]
[379142290,1755161451342,-726.52366915,0.00039919,2]
[379142291,1755161451354,-572.65026246,0.00039919,2]
[379142292,1755161451372,-2606.00887837,0.00039919,2]
[379142293,1755161451383,-282.31187868,0.00039919,2]
[379142295,1755161503898,-710.0,0.00031,30]
[379142297,1755161555158,600.0,0.00030135,120]
[379142311,1755161630973,341.0,0.0003013,120]
[379142321,1755162068756,165.712124,7.945e-05,2]
[379142329,1755162224662,228.72,0.00013699,2]
[379142330,1755162264431,5000.0,0.00030137,120]
[379142331,1755162275053,3000.0,0.00030137,120]
[379142332,1755162326149,3000.0,0.00030137,120]
[379142333,1755162332871,3000.0,0.00030137,120]
[379142334,1755162342771,1314.25896817,0.00030137,120]
[379142337,1755162368338,3000.0,0.00030137,120]
[379142338,1755162375900,3000.0,0.00030137,120]
[379142339,1755162386632,3000.0,0.00030137,120]
[379142341,1755162406773,3000.0,0.00030137,120]
[379142368,1755162632367,-228.72,0.00020187,2]
[379142370,1755162632382,-250.0,0.00021187,2]
[379142372,1755162632394,-250.0,0.00021838,2]
[379142375,1755162632406,-2500.0,0.0002206,2]
[379142376,1755162632420,-2500.0,0.00022206,2]
[379142377,1755162632431,-1000.0,0.00022206,3]
[379142379,1755162632443,-2500.0,0.00022206,2]
[379142381,1755162632456,-250.0,0.00022206,2]
[379142383,1755162632469,-1200.0,0.00022305,2]
[379142384,1755162632481,-2500.0,0.00022306,2]
[379142385,1755162632493,-428.025016,0.00023415,2]
[379142386,1755162632504,-1680.0,0.00024344,2]
[379142387,1755162632517,-300.0,0.00024429,2]
[379142388,1755162632530,-300.0,0.00024429,2]
[379142389,1755162632543,-1200.0,0.0002443,2]
[379142390,1755162632557,-263.3624621,0.00024431,2]
[379142391,1755162632570,-393.1,0.00024432,2]
[379142392,1755162632587,-152.85,0.00024432,2]
[379142393,1755162632599,-151.2,0.00024432,2]
[379142394,1755162632612,-151.94,0.00024432,2]
[379142395,1755162632625,-150.95,0.00024432,2]
[379142396,1755162632638,-151.29,0.00024432,2]
[379142397,1755162632649,-152.8,0.00024432,2]
[379142398,1755162632661,-150.68,0.00024432,2]
[379142399,1755162632674,-152.76,0.00024432,2]
[379142400,1755162632686,-151.28,0.00024432,2]
[379142401,1755162632698,-151.98,0.00024432,2]
[379142402,1755162632710,-152.82,0.00024432,2]
[379142403,1755162632721,-150.12,0.00024432,2]
[379142404,1755162632734,-150.97,0.00024432,2]
[379142405,1755162632746,-500.0,0.000247,2]
[379142406,1755162632758,-500.0,0.000247,2]
[379142407,1755162632770,-500.0,0.000247,2]
[379142408,1755162632783,-503.02016739,0.000247,2]
[379142409,1755162632795,-150.67,0.00024899,2]
[379142410,1755162632807,-152.54,0.00024899,2]
[379142411,1755162632819,-152.63,0.00024899,2]
[379142412,1755162632832,-151.48,0.00024899,2]
[379142413,1755162632843,-850.0,0.00024899,2]
[379142414,1755162632855,-150.24,0.000249,2]
[379142415,1755162632867,-150.52,0.000249,2]
[379142416,1755162632879,-152.72,0.000249,2]
[379142417,1755162632892,-152.08,0.000249,2]
[379142418,1755162632903,-152.4,0.000249,2]
[379142419,1755162632915,-151.3,0.000249,2]
[379142420,1755162632928,-150.75,0.000249,2]
[379142421,1755162632941,-151.8,0.000249,2]
[379142422,1755162632953,-150.69,0.000249,2]
[379142423,1755162632966,-151.04,0.000249,2]
[379142424,1755162632978,-285.80877998,0.000249,2]
[379142425,1755162632990,-644.76223271,0.00025248,2]
[379142426,1755162633003,-500.0,0.00025333,2]
[379142427,1755162633016,-500.0,0.00025333,2]
[379142428,1755162633029,-500.0,0.00025333,2]
[379142429,1755162633044,-168.26151672,0.00025333,2]
[379142430,1755162633057,-1083.0,0.00026569,2]
[379142431,1755162633071,-189.34809902,0.00026575,2]
[379142432,1755162633084,-3952.36,0.00026591,2]
[379142433,1755162633096,-999.99,0.00026591,2]
[379142434,1755162633110,-150.99,0.00026591,2]
[379142435,1755162633122,-9999.99,0.00026591,2]
[379142436,1755162633135,-2191.06,0.00026591,2]
[379142437,1755162633148,-499.99,0.00026591,2]
[379142438,1755162633161,-228.72,0.00026676,2]
[379142439,1755162633174,-523.0,0.00027137,2]
[379142440,1755162633187,-8517.77,0.0002727,2]
[379142441,1755162633200,-884.83652601,0.00029116,2]
[379142442,1755162633213,-393.1,0.00029375,2]
[379142443,1755162633226,-523.0,0.00030247,5]
[379142444,1755162633240,-371.84,0.00031,30]
[379142445,1755162633252,-500.0,0.0003212,5]
[379142446,1755162633266,-1081.84,0.000322,30]
[379142447,1755162633280,-307.66,0.00032226,2]
[379142448,1755162633293,-249.0,0.00032446,2]
[379142449,1755162633306,-176.94,0.00032511,2]
[379142450,1755162633320,-3479.924,0.00032783,33]
[379142451,1755162633333,-175.432,0.00032783,33]
[379142452,1755162633346,-2302.3,0.00032843,120]
[379142453,1755162633360,-300.0,0.00032876,120]
[379142454,1755162633373,-228.72,0.00033165,2]
[379142455,1755162633388,-10396.97,0.00033177,2]
[379142456,1755162633403,-523.0,0.00033356,8]
[379142457,1755162633419,-307.66,0.00033837,2]
[379142458,1755162633433,-282.6016546,0.000342,2]
[379142459,1755162633445,-393.1,0.00034319,5]
[379142460,1755162633461,-250.0,0.00034438,2]
[379142461,1755162633476,-500.0,0.0003456,5]
[379142462,1755162633489,-500.0,0.0003468,2]
[379142463,1755162633501,-1000.0,0.0003468,2]
[379142464,1755162633514,-850.78,0.0003468,2]
[379142465,1755162633528,-1329.32,0.00034729,2]
[379142466,1755162633541,-1000.0,0.00034853,2]
[379142467,1755162633554,-204.94,0.00034915,120]
[379142468,1755162633567,-300.0,0.00035,120]
[379142469,1755162633580,-150.0,0.00035101,2]
[379142470,1755162633593,-307.66,0.00035449,2]
[379142471,1755162633606,-3715.19,0.00035725,7]
[379142472,1755162633619,-1500.0,0.00035967,120]
[379142473,1755162633632,-237.71,0.00036103,120]
[379142474,1755162633649,-189.16,0.00036103,2]
[379142475,1755162633662,-189.16,0.00036122,2]
[379142476,1755162633674,-358.12,0.00036131,30]
[379142477,1755162633688,-189.16,0.00036141,2]
[379142478,1755162633701,-189.16,0.0003616,2]
[379142479,1755162633714,-189.16,0.00036179,2]
[379142480,1755162633726,-189.16,0.00036198,2]
[379142481,1755162633740,-501.5954582,0.000362,5]
[379142482,1755162633753,-189.16,0.00036217,2]
[379142483,1755162633766,-189.16,0.00036236,2]
[379142484,1755162633781,-189.16,0.00036255,2]
[379142485,1755162633794,-189.16,0.00036274,2]
[379142486,1755162633808,-150.0,0.00036276,2]
[379142487,1755162633820,-189.16,0.00036293,2]
[379142488,1755162633833,-189.16,0.00036312,2]
[379142489,1755162633845,-189.16,0.00036331,2]
[379142490,1755162633857,-189.16,0.0003635,2]
[379142491,1755162633869,-189.16,0.00036369,2]
[379142492,1755162633882,-189.16,0.00036388,2]
[379142493,1755162633901,-189.16,0.00036407,2]
[379142494,1755162633914,-189.16,0.00036426,2]
[379142495,1755162633928,-273.9151762,0.00036441,2]
[379142496,1755162633941,-189.16,0.00036445,2]
[379142497,1755162633953,-160.0,0.00036452,2]
[379142498,1755162633966,-189.16,0.00036464,2]
[379142499,1755162633979,-523.0,0.00036466,12]
[379142500,1755162633993,-321.25853999,0.00036607,2]
[379142501,1755162634006,-500.0,0.0003675,5]
[379142502,1755162634019,-161.8805088,0.0003675,5]
[379142503,1755162634033,-501.86921107,0.0003675,5]
[379142504,1755162634046,-500.0,0.0003675,5]
[379142505,1755162634059,-500.0,0.0003675,5]
[379142506,1755162634072,-500.0,0.0003675,5]
[379142507,1755162634084,-500.0,0.0003675,5]
[379142508,1755162634098,-500.0,0.0003675,5]
[379142509,1755162634111,-529.47159828,0.0003675,5]
[379142510,1755162634124,-368.60190377,0.00036772,2]
[379142511,1755162634136,-415.94526756,0.00036938,2]
[379142512,1755162634149,-1000.0,0.00037,120]
[379142513,1755162634162,-307.66,0.0003706,2]
[379142514,1755162634175,-463.28863135,0.00037103,2]
[379142515,1755162634189,-200.0,0.00037239,2]
[379142516,1755162634202,-200.0,0.00037239,2]
[379142517,1755162634214,-200.0,0.00037239,2]
[379142518,1755162634227,-200.0,0.00037239,2]
[379142519,1755162634240,-200.0,0.00037239,2]
[379142520,1755162634253,-200.0,0.00037239,2]
[379142521,1755162634265,-200.0,0.00037239,2]
[379142522,1755162634279,-200.0,0.00037239,2]
[379142523,1755162634291,-200.0,0.00037239,2]
[379142524,1755162634304,-200.0,0.00037239,2]
[379142525,1755162634316,-200.0,0.00037239,2]
[379142526,1755162634328,-200.0,0.00037239,2]
[379142527,1755162634341,-200.0,0.00037239,2]
[379142528,1755162634354,-200.0,0.00037239,2]
[379142529,1755162634367,-200.0,0.00037239,2]
[379142530,1755162634381,-200.0,0.00037239,2]
[379142531,1755162634393,-200.0,0.00037239,2]
[379142532,1755162634406,-200.0,0.00037239,2]
[379142533,1755162634419,-200.0,0.00037239,2]
[379142534,1755162634430,-200.0,0.00037239,2]
[379142535,1755162634440,-510.63199514,0.00037269,2]
[379142536,1755162634451,-500.0,0.00037298,5]
[379142537,1755162634461,-500.0,0.00037298,5]
[379142538,1755162634471,-2040.86559005,0.00037316,2]
[379142539,1755162634481,-512.66895564,0.00037325,2]
[379142540,1755162634490,-176.94,0.00037388,2]
[379142541,1755162634500,-36880.07349329,0.00037405,2]
[379142542,1755162634639,-446.91620132,0.00037405,2]
[379142543,1755162634652,-614.87250049,0.00037405,2]
[379142544,1755162634664,-446.35286518,0.00037405,2]
[379142545,1755162634675,-1128.64713482,0.00037405,2]
[379142546,1755162634687,-603.81869961,0.00037405,2]
[379142547,1755162634698,-5308.25678972,0.00037405,2]
[379142548,1755162634708,-150.0,0.00037425,2]
[379142549,1755162634717,-557.97535892,0.00037434,2]
[379142550,1755162634727,-605.31872271,0.000376,2]
[379142551,1755162634737,-512.66895555,0.00037609,2]
[379142552,1755162635513,-652.6620865,0.00037765,2]
[379142553,1755162635542,-512.66895555,0.00037893,2]
[379142554,1755162635569,-700.00545029,0.00037931,2]
[379142555,1755162635597,-159.0,0.00038,120]
[379142556,1755162635620,-159.0,0.00038,120]
[379142557,1755162635639,-169.0,0.00038,30]
[379142558,1755162635658,-1000.0,0.00038,120]
[379142559,1755162635667,-747.34881407,0.00038096,2]
[379142560,1755162635677,-512.66895555,0.00038176,2]
[379142561,1755162635686,-794.69217786,0.00038262,2]
[379142562,1755162635695,-1147.82957934,0.00038322,120]
[379142563,1755162635704,-896.0,0.00038372,2]
[379142564,1755162635713,-1655.0,0.00038372,2]
[379142565,1755162635722,-1296.0,0.00038372,2]
[379142566,1755162635731,-2000.0,0.000384,2]
[379142567,1755162635740,-842.03554165,0.00038427,2]
[379142568,1755162635749,-512.66895555,0.0003846,2]
[379142569,1755162635759,-889.37890544,0.00038593,2]
[379142570,1755162635768,-947.79379128,0.0003861,2]
[379142571,1755162635777,-169.0,0.0003863,90]
[379142572,1755162635787,-471.0,0.00038661,7]
[379142573,1755162635797,-307.66,0.00038671,2]
[379142574,1755162635806,-697.63,0.00038678,2]
[379142575,1755162635815,-947.79379128,0.0003871,2]
[379142576,1755162635824,-512.66895555,0.00038744,2]
[379142577,1755162635833,-170.0,0.00038745,7]
[379142578,1755162635843,-936.72226922,0.00038758,2]
[379142579,1755162635852,-947.79379128,0.0003881,2]
[379142580,1755162635862,-700.0,0.000389,14]
[379142581,1755162635878,-947.79379128,0.0003891,2]
[379142582,1755162635888,-984.06563301,0.00038924,2]
[379142583,1755162635898,-6086.0,0.00038948,2]
[379142584,1755162635907,-4149.0,0.00038948,2]
[379142585,1755162635916,-150.0,0.00038995,2]
[379142586,1755162635925,-1500.0,0.00039,14]
[379142587,1755162635934,-152.79,0.00039,2]
[379142588,1755162635943,-152.09,0.00039,2]
[379142589,1755162635953,-1000.0,0.00039,120]
[379142590,1755162635962,-150.49,0.00039,2]
[379142591,1755162635971,-150.11,0.00039,2]
[379142592,1755162635980,-151.06,0.00039,2]
[379142593,1755162635989,-150.36,0.00039,2]
[379142594,1755162635998,-947.79379128,0.0003901,2]
[379142595,1755162636007,-512.66895555,0.00039028,2]
[379142596,1755162636017,-1763.46,0.00039055,2]
[379142597,1755162636027,-1031.4089968,0.00039089,2]
[379142598,1755162636036,-2300.0,0.000391,14]
[379142599,1755162636045,-947.79379128,0.0003911,2]
[379142600,1755162636055,-165.19,0.00039151,2]
[379142601,1755162636064,-537.09,0.00039151,2]
[379142602,1755162636073,-612.384391,0.00039178,30]
[379142603,1755162636082,-612.384391,0.00039178,30]
[379142604,1755162636092,-151.0,0.00039178,30]
[379142605,1755162636101,-3000.0,0.000392,14]
[379142606,1755162636111,-1000.0,0.00039209,2]
[379142607,1755162636120,-947.79379128,0.0003921,2]
[379142608,1755162636129,-608.87030516,0.0003923,48]
[379142609,1755162636139,-1078.75236059,0.00039255,2]
[379142610,1755162636147,-393.1,0.00039262,7]
[379142611,1755162636157,-3800.0,0.000393,14]
[379142612,1755162636166,-947.79379128,0.0003931,2]
[379142613,1755162636175,-512.66895555,0.00039311,2]
[379142614,1755162636184,-162.64857056,0.00039329,15]
[379142615,1755162636193,-5502.3951148,0.00039329,2]
[379142616,1755162636203,-1000.0,0.0003933,2]
[379142617,1755162636212,-34532.0512,0.0003933,2]
[379142618,1755162636220,-1000.0,0.0003933,2]
[379142619,1755162636230,-2500.0,0.0003933,2]
[379142620,1755162636239,-469.0,0.00039346,7]
[379142621,1755162636248,-469.0,0.00039349,2]
[379142622,1755162636257,-249.59871,0.00039369,30]
[379142623,1755162636266,-249.59871,0.00039369,30]
[379142624,1755162636275,-303.8125,0.00039371,2]
[379142625,1755162636284,-1578.59783987,0.00039371,2]
[379142626,1755162636296,-1633.93201016,0.00039371,2]
[379142627,1755162636327,-3284.02329768,0.00039371,2]
[379142628,1755162636348,-2998.97995,0.00039371,2]
[379142629,1755162636359,-677.54851383,0.00039371,2]
[379142630,1755162636400,-450.95539487,0.00039371,2]
[379142631,1755162636430,-3243.87560763,0.00039371,2]
[379142663,1755162639869,-151.0,0.00038538,2]
[379142664,1755162639880,-391.46609112,0.00039371,2]
[379142665,1755162639891,-1010.43986575,0.00039371,2]
[379142666,1755162639903,-15002.13492529,0.00039371,2]
[379142667,1755162639923,-10889.3593007,0.00039371,2]
[379142668,1755162639933,-700.0,0.000394,14]
[379142669,1755162639943,-947.79379128,0.0003941,2]
[379142670,1755162639954,-1126.09572437,0.0003942,2]
[379142671,1755162639964,-4811.52984264,0.0003942,4]
[379142672,1755162639976,-2398.86082773,0.0003942,4]
[379142673,1755162639988,-1345.53390888,0.0003942,4]
[379142674,1755162639999,-1114.64330108,0.0003942,4]
[379142675,1755162640774,-301.85910403,0.00036121,15]
[379142676,1755162640785,-152.0,0.00038538,2]
[379142677,1755162640795,-1912.96509597,0.0003942,4]
[379142678,1755162640806,-4548.06760809,0.0003942,4]
[379142689,1755162642987,-1000.0,0.000389,2]
[379142690,1755162642996,-177922.80608761,0.0003942,4]
[379142691,1755162643005,-5502.39511472,0.00039427,2]
[379142692,1755162643015,-1438.43,0.00039429,5]
[379142693,1755162643025,-227996.337747,0.0003943,2]
[379142694,1755162643035,-1000.0,0.00039495,7]
[379142695,1755162643044,-700.0,0.000395,14]
[379142696,1755162643055,-899.74768,0.0003952,2]
[379142697,1755162643065,-168.0,0.00039521,2]
[379142698,1755162643074,-5502.39511472,0.00039526,2]
[379142699,1755162643083,-523.0,0.00039575,15]
[379142700,1755162643092,-512.66895555,0.00039595,2]
[379142701,1755162643101,-700.0,0.000396,14]
[379142702,1755162643111,-5502.39511472,0.00039624,2]
[379142703,1755162643121,-228.72,0.00039654,2]
[379142704,1755162643130,-905.0,0.00039658,4]
[379142705,1755162643139,-500.0,0.00039658,2]
[379142706,1755162643149,-500.0,0.00039658,4]
[379142707,1755162643158,-150.0,0.00039658,4]
[379142708,1755162643168,-150.0,0.00039658,4]
[379142709,1755162643182,-150.0,0.00039658,4]
[379142714,1755162643351,-150.0,0.00039658,4]
[379142716,1755162643362,-150.0,0.00039658,4]
[379142718,1755162643371,-500.0,0.00039658,4]
[379142720,1755162643384,-150.0,0.00039658,2]
[379142722,1755162643394,-150.0,0.00039658,4]
[379142724,1755162643403,-150.0,0.00039658,2]
[379142726,1755162643412,-150.0,0.00039658,4]
[379142728,1755162643423,-500.0,0.00039658,4]
[379142730,1755162643432,-17894.2423,0.00039689,2]
[379142732,1755162643441,-700.0,0.000397,14]
[379142734,1755162643451,-2500.0,0.0003971,14]
[379142736,1755162643461,-2500.0,0.00039718,14]
[379142737,1755162643470,-5502.39511472,0.00039723,2]
[379142739,1755162643479,-1000.0,0.00039726,30]
[379142740,1755162643489,-2500.0,0.00039727,14]
[379142741,1755162643498,-150.0,0.00039728,2]
[379142742,1755162643508,-483.32861956,0.00039735,4]
[379142743,1755162643517,-2500.0,0.00039736,14]
[379142744,1755162643527,-1000.0,0.0003974,30]
[379142745,1755162643538,-152.2025362,0.00039744,2]
[379142746,1755162643547,-2500.0,0.00039745,14]
[379142747,1755162643556,-2500.0,0.0003975,14]
[379142748,1755162643566,-1000.0,0.00039753,30]
[379142749,1755162643575,-2500.0,0.00039754,14]
[379142750,1755162643584,-150.0,0.00039754,120]
[379142751,1755162643593,-150.0,0.00039759,2]
[379142752,1755162643603,-870.26,0.00039759,2]
[379142753,1755162643612,-521.1,0.00039759,2]
[379142754,1755162643621,-331.58,0.00039759,2]
[379142755,1755162643631,-150.0,0.00039759,2]
[379142756,1755162643641,-173.27,0.00039759,2]
[379142757,1755162643650,-2500.0,0.00039759,14]
[379142758,1755162643660,-2500.0,0.00039762,14]
[379142759,1755162643670,-1000.0,0.00039767,30]
[379142760,1755162643680,-2500.0,0.00039768,14]
[379142761,1755162643690,-2500.0,0.00039771,14]
[379142762,1755162643699,-2500.0,0.00039777,14]
[379142763,1755162643708,-2500.0,0.0003978,14]
[379142764,1755162643718,-1000.0,0.00039781,30]
[379142765,1755162643727,-2500.0,0.00039786,14]
[379142766,1755162643736,-2500.0,0.00039789,14]
[379142767,1755162643745,-2500.0,0.00039794,14]
[379142768,1755162643756,-1000.0,0.00039795,30]
[379142769,1755162643766,-2500.0,0.00039798,14]
[379142770,1755162643775,-1396.0,0.000398,14]
[379142771,1755162643785,-2500.0,0.00039803,14]
[379142772,1755162643795,-161.75804295,0.00039804,13]
[379142773,1755162643804,-1000.0,0.00039808,30]
[379142774,1755162643814,-155.9150015,0.0003981,2]
[379142775,1755162643824,-2500.0,0.00039812,14]
[379142776,1755162643833,-5000.0,0.00039819,2]
[379142777,1755162643842,-2500.0,0.00039821,14]
[379142778,1755162643852,-5502.39511472,0.00039821,2]
[379142779,1755162643862,-1000.0,0.00039822,30]
[379142780,1755162643871,-2500.0,0.0003983,14]
[379142781,1755162643880,-155.91500149,0.00039833,2]
[379142782,1755162643890,-1000.0,0.00039836,30]
[379142783,1755162643899,-2500.0,0.00039838,14]
[379142784,1755162643909,-2500.0,0.00039847,14]
[379142785,1755162643918,-1000.0,0.00039849,30]
[379142786,1755162643928,-483.32861956,0.00039855,4]
[379142787,1755162643938,-155.91500149,0.00039856,2]
[379142788,1755162643947,-2500.0,0.00039856,14]
[379142789,1755162643957,-1000.0,0.00039863,30]
[379142790,1755162643967,-2500.0,0.00039865,14]
[379142791,1755162643976,-966.65723912,0.00039867,4]
[379142792,1755162643986,-2500.0,0.00039874,14]
[379142793,1755162643995,-1000.0,0.00039877,30]
[379142794,1755162644005,-151.0,0.00039877,15]
[379142795,1755162644015,-151.0,0.00039877,15]
[379142796,1755162644024,-200.0,0.00039877,15]
[379142797,1755162644035,-151.0,0.00039877,15]
[379142798,1755162644045,-151.0,0.00039877,15]
[379142799,1755162644054,-200.0,0.00039877,15]
[379142800,1755162644063,-300.0,0.00039877,15]
[379142801,1755162644072,-311.1,0.00039877,15]
[379142802,1755162644083,-1000.0,0.00039877,15]
[379142803,1755162644093,-151.0,0.00039877,15]
[379142804,1755162644102,-322.6107,0.00039877,15]
[379142805,1755162644111,-481.01636715,0.00039877,15]
[379142806,1755162644120,-151.0,0.00039877,15]
[379142807,1755162644129,-1386.78395259,0.00039877,15]
[379142808,1755162644138,-334.5472959,0.00039877,15]
[379142809,1755162644147,-160.0,0.00039877,15]
[379142810,1755162644157,-151.0,0.00039877,15]
[379142811,1755162644167,-1438.09495884,0.00039877,15]
[379142812,1755162644176,-346.92554585,0.00039877,15]
[379142813,1755162644185,-1000.0,0.00039877,15]
[379142814,1755162644194,-1491.30447232,0.00039877,15]
[379142815,1755162644203,-151.0,0.00039877,15]
[379142816,1755162644213,-160.0,0.00039877,15]
[379142817,1755162644223,-1000.0,0.00039877,15]
[379142818,1755162644232,-359.76179104,0.00039877,15]
[379142819,1755162644241,-1000.0,0.00039877,15]
[379142820,1755162644251,-1546.48273779,0.00039877,15]
[379142821,1755162644260,-160.0,0.00039877,15]
[379142822,1755162644269,-1000.0,0.00039877,15]
[379142823,1755162644279,-151.0,0.00039877,15]
[379142824,1755162644289,-373.07297731,0.00039877,15]
[379142825,1755162644298,-1603.70259909,0.00039877,15]
[379142826,1755162644307,-160.0,0.00039877,15]
[379142827,1755162644317,-1000.0,0.00039877,15]
[379142828,1755162644326,-165.47275424,0.00039877,15]
[379142829,1755162644336,-1000.0,0.00039877,15]
[379142830,1755162644345,-386.87667747,0.00039877,15]
[379142831,1755162644355,-160.0,0.00039877,15]
[379142832,1755162644364,-1000.0,0.00039877,15]
[379142833,1755162644375,-1663.03959526,0.00039877,15]
[379142834,1755162644394,-1000.0,0.00039877,15]
[379142835,1755162644411,-401.19111454,0.00039877,15]
[379142836,1755162644420,-160.0,0.00039877,15]
[379142837,1755162644430,-1000.0,0.00039877,15]
[379142838,1755162644440,-1724.57206028,0.00039877,15]
[379142839,1755162644449,-1000.0,0.00039877,15]
[379142840,1755162644460,-160.0,0.00039877,15]
[379142841,1755162644470,-1000.0,0.00039877,15]
[379142842,1755162644480,-416.03518578,0.00039877,15]
[379142843,1755162644489,-886.26970978,0.00039877,15]
[379142844,1755162644499,-1000.0,0.00039877,15]
[379142845,1755162644508,-1000.0,0.00039877,15]
[379142846,1755162644517,-160.0,0.00039877,15]
[379142847,1755162644527,-431.42848765,0.00039877,15]
[379142848,1755162644537,-1000.0,0.00039877,15]